[Event "Titled Tuesday Blitz February 21 Late 2023"]
[White "Toncheva, Nadya"]
[Black "Guzman Moneo, Alberto"]
[WhiteFideId "2924056"]
[BlackFideId "2209616"]
[WhiteElo "2295"]
[BlackElo "2170"]
[Result "0-1"]
[Round "07"]
[TimeControl "180+2"]
[Date "2023.02.21"]
[WhiteClock "0:00:03"]
[BlackClock "0:00:29"]

1. d4 {[%clk 0:03:00]}  Nf6 {[%clk 0:02:59]} 2. c4 {[%clk 0:03:00]}  c5 {[%clk 0:02:59]} 3. d5 {[%clk 0:03:00]}  b5 {[%clk 0:02:59]} 4. cxb5 {[%clk 0:03:00]}  a6 {[%clk 0:02:59]} 5. b6 {[%clk 0:03:01]}  g6 {[%clk 0:02:59]} 6. Nc3 {[%clk 0:03:00]}  Bg7 {[%clk 0:03:00]} 7. Qb3 {[%clk 0:03:00]}  Bb7 {[%clk 0:02:58]} 8. e4 {[%clk 0:02:59]}  d6 {[%clk 0:02:58]} 9. a4 {[%clk 0:02:58]}  a5 {[%clk 0:02:58]} 10. Nf3 {[%clk 0:02:54]}  O-O {[%clk 0:02:57]} 11. Nd2 {[%clk 0:02:53]}  Nbd7 {[%clk 0:02:54]} 12. Nc4 {[%clk 0:02:53]}  Ba6 {[%clk 0:02:50]} 13. Bg5 {[%clk 0:02:47]}  Rb8 {[%clk 0:02:45]} 14. Nxa5 {[%clk 0:02:24]}  Rxb6 {[%clk 0:02:37]} 15. Qc2 {[%clk 0:02:19]}  Bxf1 {[%clk 0:02:33]} 16. Kxf1 {[%clk 0:02:18]}  Rxb2 {[%clk 0:02:29]} 17. Qxb2 {[%clk 0:02:09]}  Qxa5 {[%clk 0:02:28]} 18. Qc2 {[%clk 0:01:53]}  Nxe4 {[%clk 0:02:14]} 19. Qxe4 {[%clk 0:01:52]}  Bxc3 {[%clk 0:02:08]} 20. Rb1 {[%clk 0:01:47]}  Nf6 {[%clk 0:02:04]} 21. Bxf6 {[%clk 0:01:45]}  Bxf6 {[%clk 0:02:00]} 22. g3 {[%clk 0:01:44]}  Ra8 {[%clk 0:01:58]} 23. Kg2 {[%clk 0:01:29]}  Qxa4 {[%clk 0:01:58]} 24. Qe3 {[%clk 0:01:15]}  Kg7 {[%clk 0:01:52]} 25. h4 {[%clk 0:01:14]}  h5 {[%clk 0:01:51]} 26. Rb7 {[%clk 0:01:08]}  Qc4 {[%clk 0:01:43]} 27. Rd1 {[%clk 0:01:05]}  Ra2 {[%clk 0:01:33]} 28. Rd2 {[%clk 0:00:50]}  Ra1 {[%clk 0:01:27]} 29. Qd3 {[%clk 0:00:32]}  Qxd3 {[%clk 0:01:20]} 30. Rxd3 {[%clk 0:00:33]}  Ra2 {[%clk 0:01:20]} 31. Rc7 {[%clk 0:00:24]}  Rc2 {[%clk 0:01:17]} 32. Rf3 {[%clk 0:00:23]}  Rd2 {[%clk 0:01:13]} 33. Ra3 {[%clk 0:00:21]}  Rxd5 {[%clk 0:01:11]} 34. Kf3 {[%clk 0:00:21]}  Rf5+ {[%clk 0:01:10]} 35. Ke2 {[%clk 0:00:20]}  Bd4 {[%clk 0:01:04]} 36. Rxe7 {[%clk 0:00:14]}  Rxf2+ {[%clk 0:01:03]} 37. Ke1 {[%clk 0:00:13]}  Rf5 {[%clk 0:00:58]} 38. Ke2 {[%clk 0:00:10]}  c4 {[%clk 0:00:54]} 39. Rf3 {[%clk 0:00:09]}  Rxf3 {[%clk 0:00:49]} 40. Kxf3 {[%clk 0:00:09]}  c3 {[%clk 0:00:49]} 41. Rc7 {[%clk 0:00:10]}  Be5 {[%clk 0:00:48]} 42. Ke4 {[%clk 0:00:10]}  Kf6 {[%clk 0:00:48]} 43. Kf3 {[%clk 0:00:08]}  Ke6 {[%clk 0:00:48]} 44. Rc8 {[%clk 0:00:08]}  d5 {[%clk 0:00:47]} 45. g4 {[%clk 0:00:07]}  hxg4+ {[%clk 0:00:46]} 46. Kxg4 {[%clk 0:00:07]}  d4 {[%clk 0:00:45]} 47. Kf3 {[%clk 0:00:08]}  f5 {[%clk 0:00:44]} 48. Rc6+ {[%clk 0:00:06]}  Kd5 {[%clk 0:00:42]} 49. Rxg6 {[%clk 0:00:06]}  c2 {[%clk 0:00:39]} 50. Rg1 {[%clk 0:00:07]}  d3 {[%clk 0:00:36]} 51. Ke3 {[%clk 0:00:03]}  Bd4+ {[%clk 0:00:33]} 52. Kxd3 {[%clk 0:00:04]}  Bxg1 {[%clk 0:00:33]} 53. Kxc2 {[%clk 0:00:05]}  Ke4 {[%clk 0:00:31]} 54. h5 {[%clk 0:00:04]}  Be3 {[%clk 0:00:31]} 55. Kd1 {[%clk 0:00:04]}  Kf3 {[%clk 0:00:31]} 56. Ke1 {[%clk 0:00:05]}  Kg2 {[%clk 0:00:29]} 57. Ke2 {[%clk 0:00:03]}  Bg5 {[%clk 0:00:29]} 58. Ke1 {[%clk 0:00:03]}  f4 {[%clk 0:00:29]} 59. h6 {[%clk 0:00:03]}  Bxh6 {[%clk 0:00:29]} 0-1


[Site "https://www.chess.com"]

[Event "Titled Tuesday Blitz February 21 Late 2023"]
[White "Stachanczyk, Jacek"]
[Black "Golubev, Mikhail"]
[WhiteFideId "1116657"]
[BlackFideId "14100983"]
[WhiteElo "2147"]
[BlackElo "2461"]
[Result "0-1"]
[Round "07"]
[TimeControl "180+2"]
[Date "2023.02.21"]
[WhiteClock "0:02:22"]
[BlackClock "0:01:04"]

1. e4 {[%clk 0:03:00]}  c5 {[%clk 0:02:58]} 2. Nf3 {[%clk 0:02:59]}  d6 {[%clk 0:02:58]} 3. d4 {[%clk 0:02:59]}  cxd4 {[%clk 0:02:57]} 4. Nxd4 {[%clk 0:03:00]}  Nf6 {[%clk 0:02:57]} 5. Nc3 {[%clk 0:03:00]}  g6 {[%clk 0:02:58]} 6. Be3 {[%clk 0:03:00]}  Bg7 {[%clk 0:02:58]} 7. f3 {[%clk 0:03:00]}  Nc6 {[%clk 0:02:58]} 8. Qd2 {[%clk 0:03:01]}  O-O {[%clk 0:02:58]} 9. O-O-O {[%clk 0:03:01]}  d5 {[%clk 0:02:59]} 10. Qe1 {[%clk 0:03:00]}  e5 {[%clk 0:02:57]} 11. Nxc6 {[%clk 0:02:59]}  bxc6 {[%clk 0:02:58]} 12. exd5 {[%clk 0:02:55]}  Nxd5 {[%clk 0:02:57]} 13. Bc4 {[%clk 0:02:54]}  Be6 {[%clk 0:02:57]} 14. Ne4 {[%clk 0:02:54]}  Qc7 {[%clk 0:02:56]} 15. g4 {[%clk 0:02:40]}  Nxe3 {[%clk 0:02:45]} 16. Bxe6 {[%clk 0:02:39]}  Nxd1 {[%clk 0:02:44]} 17. Bb3 {[%clk 0:02:37]}  Rad8 {[%clk 0:02:26]} 18. Qe2 {[%clk 0:02:32]}  Nxb2 {[%clk 0:01:23]} 19. Kxb2 {[%clk 0:02:33]}  Kh8 {[%clk 0:01:22]} 20. h4 {[%clk 0:02:28]}  f5 {[%clk 0:01:13]} 21. Ng5 {[%clk 0:02:27]}  e4+ {[%clk 0:01:12]} 22. Kb1 {[%clk 0:02:27]}  Qe5 {[%clk 0:01:08]} 23. Bg8 {[%clk 0:02:22]}  Qa1# {[%clk 0:01:04]} 0-1


[Site "https://www.chess.com"]

[Event "Titled Tuesday Blitz February 21 Late 2023"]
[White "Przybylski, Wojciech"]
[Black "Fernandez Siles, Luis"]
[WhiteFideId "1117599"]
[BlackFideId "2209420"]
[WhiteElo "2321"]
[BlackElo "2218"]
[Result "0-1"]
[Round "07"]
[TimeControl "180+2"]
[Date "2023.02.21"]
[WhiteClock "0:00:14"]
[BlackClock "0:00:14"]

1. e4 {[%clk 0:03:00]}  c5 {[%clk 0:02:57]} 2. Nf3 {[%clk 0:02:56]}  Nc6 {[%clk 0:02:57]} 3. d4 {[%clk 0:02:54]}  cxd4 {[%clk 0:02:58]} 4. Nxd4 {[%clk 0:02:55]}  Nf6 {[%clk 0:02:57]} 5. Nc3 {[%clk 0:02:54]}  e5 {[%clk 0:02:58]} 6. Ndb5 {[%clk 0:02:53]}  d6 {[%clk 0:02:58]} 7. Bg5 {[%clk 0:02:51]}  a6 {[%clk 0:02:59]} 8. Na3 {[%clk 0:02:51]}  b5 {[%clk 0:03:00]} 9. Nd5 {[%clk 0:02:51]}  Be7 {[%clk 0:03:00]} 10. Bxf6 {[%clk 0:02:51]}  Bxf6 {[%clk 0:03:01]} 11. c3 {[%clk 0:02:52]}  O-O {[%clk 0:03:00]} 12. Nc2 {[%clk 0:02:52]}  Rb8 {[%clk 0:03:00]} 13. a4 {[%clk 0:02:49]}  bxa4 {[%clk 0:02:55]} 14. Ncb4 {[%clk 0:02:48]}  Bb7 {[%clk 0:02:47]} 15. Bd3 {[%clk 0:02:32]}  a5 {[%clk 0:02:37]} 16. Nc2 {[%clk 0:02:23]}  Ba8 {[%clk 0:02:20]} 17. Ra2 {[%clk 0:02:08]}  Bg5 {[%clk 0:02:11]} 18. O-O {[%clk 0:01:52]}  Ne7 {[%clk 0:02:09]} 19. c4 {[%clk 0:01:24]}  Bxd5 {[%clk 0:01:57]} 20. cxd5 {[%clk 0:01:22]}  Qd7 {[%clk 0:01:37]} 21. Qa1 {[%clk 0:01:17]}  Rfc8 {[%clk 0:01:28]} 22. Rxa4 {[%clk 0:01:10]}  Rxb2 {[%clk 0:01:28]} 23. Qxb2 {[%clk 0:00:59]}  Qxa4 {[%clk 0:01:27]} 24. Ra1 {[%clk 0:00:58]}  Qd7 {[%clk 0:01:08]} 25. Rxa5 {[%clk 0:00:55]}  f5 {[%clk 0:00:59]} 26. g3 {[%clk 0:00:52]}  f4 {[%clk 0:00:58]} 27. Be2 {[%clk 0:00:43]}  Qc7 {[%clk 0:00:48]} 28. Ra2 {[%clk 0:00:42]}  fxg3 {[%clk 0:00:44]} 29. hxg3 {[%clk 0:00:41]}  Qc3 {[%clk 0:00:45]} 30. Qxc3 {[%clk 0:00:35]}  Rxc3 {[%clk 0:00:46]} 31. Nb4 {[%clk 0:00:31]}  Nc8 {[%clk 0:00:33]} 32. Bg4 {[%clk 0:00:29]}  Nb6 {[%clk 0:00:22]} 33. Nc6 {[%clk 0:00:28]}  Kf7 {[%clk 0:00:18]} 34. Ra7+ {[%clk 0:00:25]}  Kf6 {[%clk 0:00:17]} 35. Bh5 {[%clk 0:00:16]}  g6 {[%clk 0:00:16]} 36. Bg4 {[%clk 0:00:17]}  h5 {[%clk 0:00:16]} 37. Be6 {[%clk 0:00:17]}  Bd2 {[%clk 0:00:15]} 38. Ra6 {[%clk 0:00:09]}  Nc4 {[%clk 0:00:11]} 39. Kg2 {[%clk 0:00:05]}  Rc2 {[%clk 0:00:10]} 40. Kf3 {[%clk 0:00:04]}  g5 {[%clk 0:00:11]} 41. Ra8 {[%clk 0:00:03]}  g4+ {[%clk 0:00:11]} 42. Kg2 {[%clk 0:00:03]}  Be3 {[%clk 0:00:09]} 43. Rf8+ {[%clk 0:00:03]}  Kg6 {[%clk 0:00:08]} 44. Ne7+ {[%clk 0:00:02]}  Kg7 {[%clk 0:00:07]} 45. Rf7+ {[%clk 0:00:02]}  Kh6 {[%clk 0:00:06]} 46. Rf6+ {[%clk 0:00:03]}  Kg7 {[%clk 0:00:06]} 47. Rf7+ {[%clk 0:00:04]}  Kh8 {[%clk 0:00:06]} 48. Rf8+ {[%clk 0:00:04]}  Kg7 {[%clk 0:00:06]} 49. Rf5 {[%clk 0:00:04]}  Bc5 {[%clk 0:00:02]} 50. Rf7+ {[%clk 0:00:03]}  Kh8 {[%clk 0:00:01]} 51. Rf8+ {[%clk 0:00:04]}  Kg7 {[%clk 0:00:02]} 52. Rf7+ {[%clk 0:00:04]}  Kh8 {[%clk 0:00:02]} 53. Rf5 {[%clk 0:00:04]}  Ne3+ {[%clk 0:00:02]} 54. Kg1 {[%clk 0:00:05]}  Nxf5 {[%clk 0:00:03]} 55. exf5 {[%clk 0:00:05]}  Rxf2 {[%clk 0:00:04]} 56. f6 {[%clk 0:00:04]}  Rxf6+ {[%clk 0:00:03]} 57. Kh1 {[%clk 0:00:05]}  Rf1+ {[%clk 0:00:04]} 58. Kg2 {[%clk 0:00:04]}  Rf2+ {[%clk 0:00:04]} 59. Kh1 {[%clk 0:00:05]}  h4 {[%clk 0:00:05]} 60. Ng6+ {[%clk 0:00:05]}  Kg7 {[%clk 0:00:05]} 61. Nxh4 {[%clk 0:00:06]}  Rf1+ {[%clk 0:00:05]} 62. Kg2 {[%clk 0:00:06]}  Rf2+ {[%clk 0:00:05]} 63. Kh1 {[%clk 0:00:06]}  e4 {[%clk 0:00:06]} 64. Bxg4 {[%clk 0:00:06]}  e3 {[%clk 0:00:05]} 65. Kg1 {[%clk 0:00:03]}  Kf6 {[%clk 0:00:05]} 66. Ng2 {[%clk 0:00:03]}  e2 {[%clk 0:00:05]} 67. Bxe2 {[%clk 0:00:01]}  Rxe2+ {[%clk 0:00:05]} 68. Kh2 {[%clk 0:00:02]}  Ke5 {[%clk 0:00:04]} 69. Kh3 {[%clk 0:00:02]}  Rxg2 {[%clk 0:00:03]} 70. Kxg2 {[%clk 0:00:02]}  Kxd5 {[%clk 0:00:04]} 71. Kf3 {[%clk 0:00:03]}  Ke5 {[%clk 0:00:05]} 72. g4 {[%clk 0:00:04]}  d5 {[%clk 0:00:05]} 73. g5 {[%clk 0:00:04]}  d4 {[%clk 0:00:06]} 74. g6 {[%clk 0:00:04]}  Bf8 {[%clk 0:00:07]} 75. Ke2 {[%clk 0:00:03]}  Bg7 {[%clk 0:00:08]} 76. Kd3 {[%clk 0:00:03]}  Kf5 {[%clk 0:00:09]} 77. Kc4 {[%clk 0:00:04]}  Kxg6 {[%clk 0:00:10]} 78. Kd3 {[%clk 0:00:04]}  Kf5 {[%clk 0:00:11]} 79. Kd2 {[%clk 0:00:05]}  Ke5 {[%clk 0:00:12]} 80. Ke2 {[%clk 0:00:06]}  Ke4 {[%clk 0:00:12]} 81. Kd2 {[%clk 0:00:06]}  d3 {[%clk 0:00:12]} 82. Kd1 {[%clk 0:00:07]}  Ke3 {[%clk 0:00:13]} 83. Ke1 {[%clk 0:00:08]}  d2+ {[%clk 0:00:12]} 84. Kd1 {[%clk 0:00:09]}  Bf6 {[%clk 0:00:13]} 85. Kc2 {[%clk 0:00:09]}  Ke2 {[%clk 0:00:14]} 86. Kb1 {[%clk 0:00:09]}  Bh4 {[%clk 0:00:14]} 87. Ka2 {[%clk 0:00:09]}  d1=Q {[%clk 0:00:14]} 88. Ka3 {[%clk 0:00:10]}  Qb1 {[%clk 0:00:14]} 89. Ka4 {[%clk 0:00:10]}  Kd3 {[%clk 0:00:14]} 90. Ka5 {[%clk 0:00:11]}  Kc4 {[%clk 0:00:14]} 91. Ka6 {[%clk 0:00:12]}  Kc5 {[%clk 0:00:14]} 92. Ka7 {[%clk 0:00:13]}  Kc6 {[%clk 0:00:14]} 93. Ka8 {[%clk 0:00:14]}  Qb7# {[%clk 0:00:14]} 0-1


[Site "https://www.chess.com"]

[Event "Titled Tuesday Blitz February 21 Late 2023"]
[White "Zampronha, Wladimir Camilo"]
[Black "Mikhalsky, Vladimir"]
[WhiteFideId "2103087"]
[BlackFideId "14144352"]
[WhiteElo "2176"]
[BlackElo "2219"]
[Result "1-0"]
[Round "07"]
[TimeControl "180+2"]
[Date "2023.02.21"]
[WhiteClock "0:00:05"]
[BlackClock "0:00:01"]

1. e4 {[%clk 0:03:00]}  g6 {[%clk 0:02:58]} 2. d4 {[%clk 0:03:00]}  Bg7 {[%clk 0:02:58]} 3. Nc3 {[%clk 0:03:00]}  d6 {[%clk 0:02:58]} 4. Bg5 {[%clk 0:02:59]}  h6 {[%clk 0:02:56]} 5. Be3 {[%clk 0:02:58]}  Nf6 {[%clk 0:02:55]} 6. f3 {[%clk 0:02:57]}  a6 {[%clk 0:02:54]} 7. Qd2 {[%clk 0:02:57]}  b5 {[%clk 0:02:54]} 8. O-O-O {[%clk 0:02:57]}  Nc6 {[%clk 0:02:40]} 9. g4 {[%clk 0:02:52]}  h5 {[%clk 0:02:39]} 10. g5 {[%clk 0:02:50]}  Nd7 {[%clk 0:02:39]} 11. f4 {[%clk 0:02:46]}  Nb6 {[%clk 0:02:38]} 12. d5 {[%clk 0:02:41]}  Na5 {[%clk 0:02:25]} 13. b3 {[%clk 0:02:41]}  b4 {[%clk 0:02:15]} 14. Nce2 {[%clk 0:02:40]}  Nac4 {[%clk 0:01:58]} 15. bxc4 {[%clk 0:02:37]}  Nxc4 {[%clk 0:01:58]} 16. Qd3 {[%clk 0:02:25]}  Nb2 {[%clk 0:01:58]} 17. Qb3 {[%clk 0:02:15]}  Nxd1 {[%clk 0:01:58]} 18. Kxd1 {[%clk 0:02:16]}  a5 {[%clk 0:01:45]} 19. Bd4 {[%clk 0:02:15]}  e5 {[%clk 0:01:27]} 20. fxe5 {[%clk 0:02:08]}  c5 {[%clk 0:01:13]} 21. dxc6 {[%clk 0:02:01]}  dxe5 {[%clk 0:01:13]} 22. c7 {[%clk 0:01:50]}  Qd6 {[%clk 0:01:01]} 23. Nf3 {[%clk 0:01:37]}  exd4 {[%clk 0:00:56]} 24. e5 {[%clk 0:01:33]}  Qxc7 {[%clk 0:00:53]} 25. Nexd4 {[%clk 0:01:32]}  O-O {[%clk 0:00:48]} 26. Bd3 {[%clk 0:01:25]}  Bg4 {[%clk 0:00:43]} 27. Kc1 {[%clk 0:01:25]}  Bxe5 {[%clk 0:00:38]} 28. Nxe5 {[%clk 0:01:23]}  Qxe5 {[%clk 0:00:37]} 29. Qb2 {[%clk 0:01:03]}  Qxg5+ {[%clk 0:00:34]} 30. Kb1 {[%clk 0:01:03]}  a4 {[%clk 0:00:32]} 31. h4 {[%clk 0:00:58]}  Qf6 {[%clk 0:00:30]} 32. Nb5 {[%clk 0:00:56]}  Qxb2+ {[%clk 0:00:27]} 33. Kxb2 {[%clk 0:00:57]}  Be6 {[%clk 0:00:25]} 34. Re1 {[%clk 0:00:52]}  Rfc8 {[%clk 0:00:23]} 35. Re4 {[%clk 0:00:46]}  Bf5 {[%clk 0:00:20]} 36. Rxb4 {[%clk 0:00:45]}  Bxd3 {[%clk 0:00:21]} 37. cxd3 {[%clk 0:00:46]}  Rab8 {[%clk 0:00:20]} 38. a3 {[%clk 0:00:45]}  Rc5 {[%clk 0:00:20]} 39. Nc3 {[%clk 0:00:44]}  Rxb4+ {[%clk 0:00:19]} 40. axb4 {[%clk 0:00:45]}  Rf5 {[%clk 0:00:18]} 41. b5 {[%clk 0:00:44]}  g5 {[%clk 0:00:17]} 42. b6 {[%clk 0:00:42]}  Rf6 {[%clk 0:00:17]} 43. Nd5 {[%clk 0:00:41]}  Rd6 {[%clk 0:00:16]} 44. b7 {[%clk 0:00:39]}  a3+ {[%clk 0:00:06]} 45. Kxa3 {[%clk 0:00:20]}  Rd8 {[%clk 0:00:05]} 46. Ne7+ {[%clk 0:00:17]}  Kf8 {[%clk 0:00:06]} 47. Nc8 {[%clk 0:00:18]}  Rxd3+ {[%clk 0:00:06]} 48. Kb2 {[%clk 0:00:16]}  gxh4 {[%clk 0:00:04]} 49. b8=Q {[%clk 0:00:16]}  h3 {[%clk 0:00:05]} 50. Qh2 {[%clk 0:00:15]}  Rf3 {[%clk 0:00:04]} 51. Kc1 {[%clk 0:00:12]}  h4 {[%clk 0:00:04]} 52. Nd6 {[%clk 0:00:12]}  Rg3 {[%clk 0:00:04]} 53. Ne4 {[%clk 0:00:11]}  Re3 {[%clk 0:00:02]} 54. Ng5 {[%clk 0:00:11]}  Rg3 {[%clk 0:00:02]} 55. Nxh3 {[%clk 0:00:11]}  f5 {[%clk 0:00:02]} 56. Nf4 {[%clk 0:00:11]}  Rg4 {[%clk 0:00:01]} 57. Kd2 {[%clk 0:00:06]}  Kf7 {[%clk 0:00:01]} 58. Ke3 {[%clk 0:00:07]}  Kf6 {[%clk 0:00:01]} 59. Kf3 {[%clk 0:00:07]}  Kg5 {[%clk 0:00:01]} 60. Qd2 {[%clk 0:00:06]}  Rg3+ {[%clk 0:00:01]} 61. Kf2 {[%clk 0:00:06]}  Kg4 {[%clk 0:00:01]} 62. Ng2 {[%clk 0:00:06]}  Rf3+ {[%clk 0:00:01]} 63. Kg1 {[%clk 0:00:05]}  h3 {[%clk 0:00:01]} 64. Qd5 {[%clk 0:00:04]}  hxg2 {[%clk 0:00:01]} 65. Kxg2 {[%clk 0:00:04]}  Rg3+ {[%clk 0:00:01]} 66. Kf2 {[%clk 0:00:05]}  Rh3 {[%clk 0:00:01]} 67. Qg8+ {[%clk 0:00:05]}  Kf4 {[%clk 0:00:01]} 68. Qf8 {[%clk 0:00:05]}  Kg4 {[%clk 0:00:01]} 69. Kg2 {[%clk 0:00:05]} 1-0


[Site "https://www.chess.com"]

[Event "Titled Tuesday Blitz February 21 Late 2023"]
[White "Ardila, Oscar Humberto"]
[Black "Vega Gutierrez, Sabrina"]
[WhiteFideId "4404742"]
[BlackFideId "2219026"]
[WhiteElo "1982"]
[BlackElo "2377"]
[Result "1-0"]
[Round "07"]
[TimeControl "180+2"]
[Date "2023.02.21"]
[WhiteClock "0:00:29"]
[BlackClock "0:00:04"]

1. d4 {[%clk 0:02:48]}  d5 {[%clk 0:02:59]} 2. c4 {[%clk 0:02:47]}  e6 {[%clk 0:02:59]} 3. Nc3 {[%clk 0:02:47]}  c6 {[%clk 0:03:00]} 4. Nf3 {[%clk 0:02:46]}  dxc4 {[%clk 0:02:59]} 5. a4 {[%clk 0:02:46]}  Bb4 {[%clk 0:02:59]} 6. e3 {[%clk 0:02:46]}  b5 {[%clk 0:02:59]} 7. Bd2 {[%clk 0:02:44]}  a5 {[%clk 0:03:00]} 8. axb5 {[%clk 0:02:42]}  Bxc3 {[%clk 0:03:00]} 9. Bxc3 {[%clk 0:02:23]}  cxb5 {[%clk 0:03:01]} 10. Ne5 {[%clk 0:02:21]}  Nf6 {[%clk 0:02:56]} 11. Qf3 {[%clk 0:02:20]}  Qd5 {[%clk 0:02:26]} 12. Qxd5 {[%clk 0:01:47]}  Nxd5 {[%clk 0:02:26]} 13. Rxa5 {[%clk 0:01:47]}  Rxa5 {[%clk 0:02:20]} 14. Bxa5 {[%clk 0:01:46]}  f6 {[%clk 0:02:20]} 15. Nf3 {[%clk 0:01:39]}  Nc6 {[%clk 0:02:21]} 16. Bd2 {[%clk 0:01:38]}  Bb7 {[%clk 0:02:07]} 17. Be2 {[%clk 0:01:37]}  Kd7 {[%clk 0:02:07]} 18. O-O {[%clk 0:01:36]}  Ra8 {[%clk 0:02:06]} 19. Rb1 {[%clk 0:01:34]}  Ra2 {[%clk 0:02:01]} 20. Be1 {[%clk 0:01:21]}  Ba6 {[%clk 0:01:33]} 21. Bf1 {[%clk 0:01:20]}  Nb6 {[%clk 0:01:22]} 22. b3 {[%clk 0:01:14]}  Nd5 {[%clk 0:00:47]} 23. bxc4 {[%clk 0:01:11]}  bxc4 {[%clk 0:00:48]} 24. Rc1 {[%clk 0:01:09]}  f5 {[%clk 0:00:38]} 25. Bxc4 {[%clk 0:01:01]}  Bxc4 {[%clk 0:00:37]} 26. Rxc4 {[%clk 0:01:02]}  Ra1 {[%clk 0:00:37]} 27. Kf1 {[%clk 0:01:00]}  Na5 {[%clk 0:00:35]} 28. Ne5+ {[%clk 0:00:58]}  Kd6 {[%clk 0:00:34]} 29. Rc8 {[%clk 0:00:53]}  f4 {[%clk 0:00:16]} 30. Ke2 {[%clk 0:00:50]}  Ra2+ {[%clk 0:00:15]} 31. Kf3 {[%clk 0:00:50]}  fxe3 {[%clk 0:00:15]} 32. fxe3 {[%clk 0:00:50]}  Nb3 {[%clk 0:00:15]} 33. Bb4+ {[%clk 0:00:45]}  Nxb4 {[%clk 0:00:14]} 34. Rd8+ {[%clk 0:00:38]}  Ke7 {[%clk 0:00:04]} 35. Rd7+ {[%clk 0:00:38]}  Kf8 {[%clk 0:00:04]} 36. Rb7 {[%clk 0:00:38]}  Nd2+ {[%clk 0:00:03]} 37. Kf4 {[%clk 0:00:37]}  Nd5+ {[%clk 0:00:03]} 38. Kg5 {[%clk 0:00:35]}  Ne4+ {[%clk 0:00:04]} 39. Kh5 {[%clk 0:00:35]}  Rxg2 {[%clk 0:00:03]} 40. Rb8+ {[%clk 0:00:28]}  Ke7 {[%clk 0:00:04]} 41. Rb7+ {[%clk 0:00:29]}  Kd6 {[%clk 0:00:04]} 42. Rd7# {[%clk 0:00:29]} 1-0


[Site "https://www.chess.com"]

[Event "Titled Tuesday Blitz February 21 Late 2023"]
[White "Bon, Michael"]
[Black "Mendez Machado, Andre"]
[WhiteFideId "620696"]
[BlackFideId "6603793"]
[WhiteElo "2394"]
[BlackElo "1974"]
[Result "1-0"]
[Round "07"]
[TimeControl "180+2"]
[Date "2023.02.21"]
[WhiteClock "0:02:03"]
[BlackClock "0:00:41"]

1. e4 {[%clk 0:02:58]}  e5 {[%clk 0:02:55]} 2. Nf3 {[%clk 0:02:56]}  Nc6 {[%clk 0:02:55]} 3. Nc3 {[%clk 0:02:55]}  Nf6 {[%clk 0:02:55]} 4. g3 {[%clk 0:02:53]}  Bc5 {[%clk 0:02:53]} 5. Bg2 {[%clk 0:02:53]}  O-O {[%clk 0:02:51]} 6. O-O {[%clk 0:02:48]}  a6 {[%clk 0:02:50]} 7. Nxe5 {[%clk 0:02:46]}  Nxe5 {[%clk 0:02:25]} 8. d4 {[%clk 0:02:45]}  d6 {[%clk 0:02:17]} 9. dxc5 {[%clk 0:02:36]}  dxc5 {[%clk 0:02:18]} 10. Bf4 {[%clk 0:02:36]}  Nc6 {[%clk 0:01:55]} 11. Qxd8 {[%clk 0:02:34]}  Rxd8 {[%clk 0:01:56]} 12. Bxc7 {[%clk 0:02:34]}  Rd2 {[%clk 0:01:45]} 13. Rad1 {[%clk 0:02:34]}  Rxc2 {[%clk 0:01:39]} 14. e5 {[%clk 0:02:34]}  Ne8 {[%clk 0:01:16]} 15. Bxc6 {[%clk 0:02:13]}  bxc6 {[%clk 0:01:15]} 16. Rd8 {[%clk 0:02:13]}  Bb7 {[%clk 0:01:15]} 17. Rxa8 {[%clk 0:02:13]}  Bxa8 {[%clk 0:01:15]} 18. Rd1 {[%clk 0:02:14]}  f6 {[%clk 0:00:52]} 19. Rd8 {[%clk 0:02:03]}  Kf7 {[%clk 0:00:46]} 20. Rxa8 {[%clk 0:02:02]}  Nxc7 {[%clk 0:00:45]} 21. Ra7 {[%clk 0:02:03]}  fxe5 {[%clk 0:00:42]} 22. Rxc7+ {[%clk 0:02:03]}  Kf6 {[%clk 0:00:41]} 23. Rxc6+ {[%clk 0:02:03]} 1-0


[Site "https://www.chess.com"]

[Event "Titled Tuesday Blitz February 21 Late 2023"]
[White "Manu_ChessExcelsior"]
[Black "Moral Garcia, Serafin"]
[BlackFideId "2201925"]
[WhiteElo "2095"]
[BlackElo "2238"]
[Result "0-1"]
[Round "07"]
[TimeControl "180+2"]
[Date "2023.02.21"]
[WhiteClock "0:00:13"]
[BlackClock "0:00:28"]

1. e4 {[%clk 0:02:59]}  c5 {[%clk 0:02:59]} 2. g3 {[%clk 0:02:58]}  d5 {[%clk 0:02:57]} 3. exd5 {[%clk 0:02:58]}  Qxd5 {[%clk 0:02:57]} 4. Nf3 {[%clk 0:02:57]}  Nc6 {[%clk 0:02:57]} 5. Nc3 {[%clk 0:02:56]}  Qh5 {[%clk 0:02:56]} 6. Bg2 {[%clk 0:02:50]}  Nf6 {[%clk 0:02:55]} 7. h3 {[%clk 0:02:30]}  Bd7 {[%clk 0:02:48]} 8. g4 {[%clk 0:02:24]}  Qg6 {[%clk 0:02:44]} 9. d3 {[%clk 0:02:21]}  h5 {[%clk 0:02:44]} 10. Nh4 {[%clk 0:02:10]}  Qh7 {[%clk 0:02:39]} 11. g5 {[%clk 0:02:10]}  Ng8 {[%clk 0:02:39]} 12. Be4 {[%clk 0:01:58]}  g6 {[%clk 0:02:36]} 13. Bf4 {[%clk 0:01:40]}  e5 {[%clk 0:02:24]} 14. Be3 {[%clk 0:01:27]}  Bd6 {[%clk 0:02:24]} 15. Nb5 {[%clk 0:01:24]}  Ke7 {[%clk 0:02:07]} 16. Nxd6 {[%clk 0:01:24]}  Kxd6 {[%clk 0:02:07]} 17. Qd2 {[%clk 0:01:15]}  Nge7 {[%clk 0:02:05]} 18. O-O-O {[%clk 0:01:15]}  Nf5 {[%clk 0:01:59]} 19. Nxf5+ {[%clk 0:01:02]}  gxf5 {[%clk 0:01:54]} 20. Bg2 {[%clk 0:00:49]}  Qg6 {[%clk 0:01:43]} 21. f4 {[%clk 0:00:47]}  Rae8 {[%clk 0:01:26]} 22. Rhe1 {[%clk 0:00:45]}  b6 {[%clk 0:01:24]} 23. Qc3 {[%clk 0:00:41]}  Kc7 {[%clk 0:01:04]} 24. fxe5 {[%clk 0:00:38]}  Qe6 {[%clk 0:00:49]} 25. d4 {[%clk 0:00:37]}  cxd4 {[%clk 0:00:46]} 26. Rxd4 {[%clk 0:00:30]}  Rc8 {[%clk 0:00:44]} 27. Rd6 {[%clk 0:00:26]}  Qxa2 {[%clk 0:00:44]} 28. Bd5 {[%clk 0:00:23]}  Qa1+ {[%clk 0:00:42]} 29. Kd2 {[%clk 0:00:23]}  Qa5 {[%clk 0:00:42]} 30. Rxc6+ {[%clk 0:00:17]}  Bxc6 {[%clk 0:00:40]} 31. Qxa5 {[%clk 0:00:17]}  bxa5 {[%clk 0:00:39]} 32. Bxc6 {[%clk 0:00:17]}  Kxc6 {[%clk 0:00:39]} 33. Bxa7 {[%clk 0:00:17]}  Rcd8+ {[%clk 0:00:38]} 34. Kc3 {[%clk 0:00:18]}  Rd5 {[%clk 0:00:38]} 35. e6 {[%clk 0:00:18]}  fxe6 {[%clk 0:00:36]} 36. Rxe6+ {[%clk 0:00:19]}  Kb7 {[%clk 0:00:36]} 37. Bd4 {[%clk 0:00:18]}  Rc8+ {[%clk 0:00:36]} 38. Kd3 {[%clk 0:00:19]}  f4 {[%clk 0:00:34]} 39. c3 {[%clk 0:00:18]}  Rxg5 {[%clk 0:00:33]} 40. Rf6 {[%clk 0:00:18]}  Rg3+ {[%clk 0:00:33]} 41. Ke4 {[%clk 0:00:18]}  Rxh3 {[%clk 0:00:31]} 42. Kxf4 {[%clk 0:00:19]}  Re8 {[%clk 0:00:31]} 43. c4 {[%clk 0:00:18]}  Rh1 {[%clk 0:00:28]} 44. Rb6+ {[%clk 0:00:15]}  Kc7 {[%clk 0:00:28]} 45. c5 {[%clk 0:00:14]}  Rh4+ {[%clk 0:00:28]} 46. Kf3 {[%clk 0:00:13]}  Rxd4 {[%clk 0:00:28]} 0-1


[Site "https://www.chess.com"]